[Event "Titled Tuesday Blitz May 16 Early 2023"]
[White "Shimanov, Aleksandr"]
[Black "Nitish Belurkar"]
[WhiteFideId "4198603"]
[BlackFideId "5084768"]
[WhiteElo "2631"]
[BlackElo "2352"]
[Result "1-0"]
[Round "11"]
[TimeControl "180+2"]
[Date "2023.05.16"]
[WhiteClock "0:00:22"]
[BlackClock "0:01:22"]

1. Nc3 {[%clk 0:02:51]}  Nf6 {[%clk 0:02:59]} 2. d4 {[%clk 0:02:42]}  g6 {[%clk 0:02:58]} 3. e4 {[%clk 0:02:40]}  d6 {[%clk 0:02:58]} 4. Nf3 {[%clk 0:02:40]}  Bg7 {[%clk 0:02:52]} 5. Be3 {[%clk 0:02:41]}  O-O {[%clk 0:02:52]} 6. Qd2 {[%clk 0:02:41]}  Nbd7 {[%clk 0:02:52]} 7. O-O-O {[%clk 0:02:38]}  c5 {[%clk 0:02:49]} 8. dxc5 {[%clk 0:02:37]}  dxc5 {[%clk 0:02:50]} 9. Bxc5 {[%clk 0:02:24]}  b6 {[%clk 0:02:48]} 10. Ba3 {[%clk 0:02:18]}  Qc7 {[%clk 0:02:41]} 11. Bxe7 {[%clk 0:02:17]}  Re8 {[%clk 0:02:41]} 12. Bd6 {[%clk 0:02:17]}  Qb7 {[%clk 0:02:38]} 13. e5 {[%clk 0:02:17]}  Ng4 {[%clk 0:02:38]} 14. Bc4 {[%clk 0:02:14]}  Bh6 {[%clk 0:02:33]} 15. Ng5 {[%clk 0:02:05]}  Ndxe5 {[%clk 0:02:33]} 16. Bd5 {[%clk 0:02:03]}  Nc6 {[%clk 0:02:21]} 17. f4 {[%clk 0:01:58]}  Bxg5 {[%clk 0:02:20]} 18. fxg5 {[%clk 0:01:59]}  Be6 {[%clk 0:02:20]} 19. h3 {[%clk 0:01:55]}  Ne3 {[%clk 0:02:16]} 20. Bxc6 {[%clk 0:01:49]}  Qxc6 {[%clk 0:02:17]} 21. Qxe3 {[%clk 0:01:50]}  Bg4 {[%clk 0:02:14]} 22. Qf4 {[%clk 0:01:42]}  Bxd1 {[%clk 0:02:13]} 23. Rxd1 {[%clk 0:01:43]}  Rad8 {[%clk 0:02:13]} 24. Qf6 {[%clk 0:00:54]}  Rd7 {[%clk 0:01:52]} 25. Be5 {[%clk 0:00:53]}  Rxd1+ {[%clk 0:01:52]} 26. Kxd1 {[%clk 0:00:52]}  Qxf6 {[%clk 0:01:47]} 27. Bxf6 {[%clk 0:00:53]}  Re6 {[%clk 0:01:45]} 28. a4 {[%clk 0:00:52]}  h6 {[%clk 0:01:44]} 29. h4 {[%clk 0:00:52]}  hxg5 {[%clk 0:01:43]} 30. hxg5 {[%clk 0:00:53]}  Kf8 {[%clk 0:01:43]} 31. Kd2 {[%clk 0:00:53]}  Ke8 {[%clk 0:01:43]} 32. Kd3 {[%clk 0:00:53]}  Kd7 {[%clk 0:01:43]} 33. Nb5 {[%clk 0:00:52]}  a6 {[%clk 0:01:42]} 34. Nc3 {[%clk 0:00:52]}  Re1 {[%clk 0:01:42]} 35. b4 {[%clk 0:00:51]}  Rg1 {[%clk 0:01:41]} 36. Nd5 {[%clk 0:00:49]}  Kc6 {[%clk 0:01:42]} 37. c4 {[%clk 0:00:49]}  Rxg2 {[%clk 0:01:41]} 38. b5+ {[%clk 0:00:49]}  axb5 {[%clk 0:01:41]} 39. axb5+ {[%clk 0:00:50]}  Kb7 {[%clk 0:01:42]} 40. Bd8 {[%clk 0:00:49]}  Rg1 {[%clk 0:01:36]} 41. Kd4 {[%clk 0:00:35]}  Rg4+ {[%clk 0:01:36]} 42. Kc3 {[%clk 0:00:33]}  Kc8 {[%clk 0:01:35]} 43. Bxb6 {[%clk 0:00:23]}  Rxg5 {[%clk 0:01:34]} 44. Be3 {[%clk 0:00:24]}  Rg3 {[%clk 0:01:30]} 45. c5 {[%clk 0:00:23]}  f5 {[%clk 0:01:30]} 46. Kd4 {[%clk 0:00:23]}  g5 {[%clk 0:01:28]} 47. Ne7+ {[%clk 0:00:21]}  Kd7 {[%clk 0:01:26]} 48. Nxf5 {[%clk 0:00:22]}  Rg4+ {[%clk 0:01:26]} 49. Kd5 {[%clk 0:00:22]}  Rb4 {[%clk 0:01:24]} 50. c6+ {[%clk 0:00:23]}  Kc8 {[%clk 0:01:24]} 51. b6 {[%clk 0:00:22]}  Rb5+ {[%clk 0:01:24]} 52. Bc5 {[%clk 0:00:22]}  g4 {[%clk 0:01:22]} 53. Nd6+ {[%clk 0:00:22]} 1-0


[Site "https://www.chess.com"]

[Event "Titled Tuesday Blitz May 16 Early 2023"]
[White "Weishaeutel, Moritz"]
[Black "Suyarov, Mukhammadzokhid"]
[WhiteFideId "12967300"]
[BlackFideId "14210495"]
[WhiteElo "2301"]
[BlackElo "2361"]
[Result "1-0"]
[Round "11"]
[TimeControl "180+2"]
[Date "2023.05.16"]
[WhiteClock "0:01:12"]
[BlackClock "0:01:27"]

1. e4 {[%clk 0:03:00]}  e6 {[%clk 0:02:57]} 2. d4 {[%clk 0:03:01]}  d5 {[%clk 0:02:57]} 3. exd5 {[%clk 0:03:01]}  exd5 {[%clk 0:02:57]} 4. Nf3 {[%clk 0:03:02]}  Bd6 {[%clk 0:02:56]} 5. c4 {[%clk 0:03:03]}  Nc6 {[%clk 0:02:53]} 6. cxd5 {[%clk 0:02:49]}  Nce7 {[%clk 0:02:52]} 7. Nc3 {[%clk 0:02:49]}  Nf6 {[%clk 0:02:52]} 8. Bg5 {[%clk 0:02:48]}  Ng6 {[%clk 0:02:43]} 9. Bb5+ {[%clk 0:02:47]}  Kf8 {[%clk 0:02:40]} 10. O-O {[%clk 0:02:38]}  h6 {[%clk 0:02:37]} 11. Bxf6 {[%clk 0:02:37]}  Qxf6 {[%clk 0:02:38]} 12. Ne4 {[%clk 0:02:38]}  Qd8 {[%clk 0:02:38]} 13. Nxd6 {[%clk 0:02:36]}  Qxd6 {[%clk 0:02:39]} 14. Re1 {[%clk 0:02:33]}  Ne7 {[%clk 0:02:36]} 15. Ne5 {[%clk 0:02:30]}  a6 {[%clk 0:02:32]} 16. Ba4 {[%clk 0:02:22]}  b5 {[%clk 0:02:30]} 17. Bb3 {[%clk 0:02:22]}  Bb7 {[%clk 0:02:28]} 18. Qf3 {[%clk 0:02:15]}  f6 {[%clk 0:02:15]} 19. Rac1 {[%clk 0:02:14]}  Re8 {[%clk 0:02:09]} 20. Nc6 {[%clk 0:01:20]}  Kf7 {[%clk 0:02:03]} 21. Re6 {[%clk 0:01:15]}  Qxe6 {[%clk 0:01:36]} 22. dxe6+ {[%clk 0:01:14]}  Kf8 {[%clk 0:01:37]} 23. d5 {[%clk 0:01:12]}  Bxc6 {[%clk 0:01:35]} 24. dxc6 {[%clk 0:01:13]}  Rd8 {[%clk 0:01:27]} 25. Rd1 {[%clk 0:01:12]} 1-0


[Site "https://www.chess.com"]

[Event "Titled Tuesday Blitz May 16 Early 2023"]
[White "Sokolovsky, Yahli"]
[Black "Moksh Amit Doshi"]
[WhiteFideId "2820242"]
[BlackFideId "25064967"]
[WhiteElo "2389"]
[BlackElo "2297"]
[Result "1-0"]
[Round "11"]
[TimeControl "180+2"]
[Date "2023.05.16"]
[WhiteClock "0:00:03"]
[BlackClock "0:00:00"]

1. b3 {[%clk 0:03:00]}  e5 {[%clk 0:02:48]} 2. Bb2 {[%clk 0:03:00]}  Nc6 {[%clk 0:02:49]} 3. e3 {[%clk 0:03:00]}  Nf6 {[%clk 0:02:49]} 4. Nf3 {[%clk 0:02:58]}  e4 {[%clk 0:02:43]} 5. Nd4 {[%clk 0:02:58]}  d5 {[%clk 0:02:41]} 6. c4 {[%clk 0:02:57]}  dxc4 {[%clk 0:02:28]} 7. Bxc4 {[%clk 0:02:57]}  Ne5 {[%clk 0:02:26]} 8. Ne6 {[%clk 0:02:34]}  Bxe6 {[%clk 0:01:56]} 9. Bxe5 {[%clk 0:02:17]}  Bxc4 {[%clk 0:01:55]} 10. bxc4 {[%clk 0:02:18]}  Bd6 {[%clk 0:01:56]} 11. Bxf6 {[%clk 0:02:13]}  Qxf6 {[%clk 0:01:54]} 12. Nc3 {[%clk 0:02:13]}  Qe5 {[%clk 0:01:49]} 13. Qa4+ {[%clk 0:02:03]}  c6 {[%clk 0:01:49]} 14. Rb1 {[%clk 0:02:04]}  Qe7 {[%clk 0:01:43]} 15. O-O {[%clk 0:01:30]}  O-O {[%clk 0:01:42]} 16. Qc2 {[%clk 0:01:14]}  Rfe8 {[%clk 0:01:40]} 17. f3 {[%clk 0:01:05]}  Qh4 {[%clk 0:01:26]} 18. f4 {[%clk 0:01:04]}  Qe7 {[%clk 0:01:23]} 19. a4 {[%clk 0:00:45]}  Rad8 {[%clk 0:01:23]} 20. a5 {[%clk 0:00:42]}  Bb4 {[%clk 0:01:21]} 21. a6 {[%clk 0:00:19]}  bxa6 {[%clk 0:01:04]} 22. Rf2 {[%clk 0:00:15]}  a5 {[%clk 0:01:02]} 23. Na2 {[%clk 0:00:10]}  c5 {[%clk 0:01:03]} 24. Nc1 {[%clk 0:00:10]}  Rd7 {[%clk 0:00:57]} 25. Ra1 {[%clk 0:00:08]}  Red8 {[%clk 0:00:57]} 26. Nb3 {[%clk 0:00:08]}  Rd3 {[%clk 0:00:55]} 27. Nxa5 {[%clk 0:00:09]}  Rxd2 {[%clk 0:00:54]} 28. Nc6 {[%clk 0:00:07]}  Qh4 {[%clk 0:00:41]} 29. Rxd2 {[%clk 0:00:05]}  Rxd2 {[%clk 0:00:41]} 30. Qxe4 {[%clk 0:00:06]}  Qf2+ {[%clk 0:00:15]} 31. Kh1 {[%clk 0:00:06]}  h5 {[%clk 0:00:15]} 32. Ne7+ {[%clk 0:00:05]}  Kf8 {[%clk 0:00:13]} 33. Nf5 {[%clk 0:00:03]}  Rd8 {[%clk 0:00:10]} 34. h3 {[%clk 0:00:03]}  Re8 {[%clk 0:00:09]} 35. Qd5 {[%clk 0:00:03]}  g6 {[%clk 0:00:00]} 36. Rxa7 {[%clk 0:00:03]} 1-0


[Site "https://www.chess.com"]

[Event "Titled Tuesday Blitz May 16 Early 2023"]
[White "Kravtsiv, Martyn"]
[Black "Bortnyk, Olexandr"]
[WhiteFideId "14113147"]
[BlackFideId "14120828"]
[WhiteElo "2695"]
[BlackElo "2734"]
[Result "1-0"]
[Round "11"]
[TimeControl "180+2"]
[Date "2023.05.16"]
[WhiteClock "0:02:29"]
[BlackClock "0:00:00"]

1. e4 {[%clk 0:03:00]}  d6 {[%clk 0:02:57]} 2. d3 {[%clk 0:02:57]}  g6 {[%clk 0:02:49]} 3. g3 {[%clk 0:02:57]}  Bg7 {[%clk 0:02:50]} 4. Bg2 {[%clk 0:02:57]}  c5 {[%clk 0:02:51]} 5. f4 {[%clk 0:02:57]}  Nc6 {[%clk 0:02:49]} 6. Nf3 {[%clk 0:02:58]}  Bg4 {[%clk 0:02:48]} 7. O-O {[%clk 0:02:57]}  Qd7 {[%clk 0:02:48]} 8. c3 {[%clk 0:02:56]}  h5 {[%clk 0:02:47]} 9. Qe1 {[%clk 0:02:48]}  h4 {[%clk 0:02:44]} 10. Nxh4 {[%clk 0:02:47]}  Bh3 {[%clk 0:02:41]} 11. f5 {[%clk 0:02:42]}  Bxg2 {[%clk 0:02:40]} 12. Nxg2 {[%clk 0:02:42]}  gxf5 {[%clk 0:02:39]} 13. exf5 {[%clk 0:02:37]}  Ne5 {[%clk 0:02:38]} 14. Qe2 {[%clk 0:02:34]}  Nf6 {[%clk 0:02:34]} 15. Na3 {[%clk 0:02:33]}  O-O-O {[%clk 0:02:24]} 16. Nc4 {[%clk 0:02:32]}  Nfg4 {[%clk 0:00:00]} 17. Nxe5 {[%clk 0:02:29]} 1-0


[Site "https://www.chess.com"]

[Event "Titled Tuesday Blitz May 16 Early 2023"]
[White "Fiorito, Joaquin"]
[Black "Kramnik, Vladimir"]
[WhiteFideId "180173"]
[BlackFideId "4101588"]
[WhiteElo "2157"]
[BlackElo "2703"]
[Result "1-0"]
[Round "11"]
[TimeControl "180+2"]
[Date "2023.05.16"]
[WhiteClock "0:00:12"]
[BlackClock "0:00:04"]

1. d4 {[%clk 0:03:00]}  Nf6 {[%clk 0:02:58]} 2. c4 {[%clk 0:03:01]}  e6 {[%clk 0:02:58]} 3. Nc3 {[%clk 0:03:02]}  Bb4 {[%clk 0:02:58]} 4. e3 {[%clk 0:03:02]}  O-O {[%clk 0:02:57]} 5. Bd2 {[%clk 0:03:02]}  b6 {[%clk 0:02:56]} 6. Nf3 {[%clk 0:03:00]}  Bb7 {[%clk 0:02:55]} 7. Bd3 {[%clk 0:03:01]}  d6 {[%clk 0:02:55]} 8. a3 {[%clk 0:02:58]}  Bxc3 {[%clk 0:02:54]} 9. Bxc3 {[%clk 0:02:59]}  Ne4 {[%clk 0:02:53]} 10. Bxe4 {[%clk 0:02:59]}  Bxe4 {[%clk 0:02:52]} 11. d5 {[%clk 0:03:00]}  e5 {[%clk 0:02:43]} 12. Nd2 {[%clk 0:02:49]}  Bg6 {[%clk 0:02:32]} 13. O-O {[%clk 0:02:45]}  Nd7 {[%clk 0:02:29]} 14. b4 {[%clk 0:02:42]}  Qe7 {[%clk 0:02:29]} 15. Qe2 {[%clk 0:02:26]}  f5 {[%clk 0:02:27]} 16. a4 {[%clk 0:02:16]}  f4 {[%clk 0:02:25]} 17. f3 {[%clk 0:02:05]}  fxe3 {[%clk 0:02:23]} 18. Qxe3 {[%clk 0:02:06]}  Qf7 {[%clk 0:02:11]} 19. a5 {[%clk 0:02:04]}  b5 {[%clk 0:02:10]} 20. Qe2 {[%clk 0:01:35]}  bxc4 {[%clk 0:02:07]} 21. Qxc4 {[%clk 0:01:34]}  Nf6 {[%clk 0:02:07]} 22. Ne4 {[%clk 0:01:24]}  Nxd5 {[%clk 0:01:51]} 23. Ng5 {[%clk 0:01:23]}  Ne3 {[%clk 0:01:51]} 24. Qe2 {[%clk 0:01:05]}  Qf4 {[%clk 0:01:51]} 25. Ne6 {[%clk 0:01:05]}  Qc4 {[%clk 0:01:38]} 26. Qxc4 {[%clk 0:01:04]}  Nxc4 {[%clk 0:01:38]} 27. Nxf8 {[%clk 0:01:05]}  Rxf8 {[%clk 0:01:37]} 28. Rfc1 {[%clk 0:01:05]}  c6 {[%clk 0:01:27]} 29. Be1 {[%clk 0:00:59]}  d5 {[%clk 0:01:26]} 30. Bf2 {[%clk 0:00:59]}  a6 {[%clk 0:01:25]} 31. Bc5 {[%clk 0:00:59]}  Re8 {[%clk 0:01:21]} 32. Rc3 {[%clk 0:00:58]}  Bf7 {[%clk 0:01:05]} 33. Re1 {[%clk 0:00:57]}  g5 {[%clk 0:01:04]} 34. Kf2 {[%clk 0:00:46]}  Kg7 {[%clk 0:01:03]} 35. g3 {[%clk 0:00:42]}  Kg6 {[%clk 0:01:00]} 36. h4 {[%clk 0:00:25]}  gxh4 {[%clk 0:00:49]} 37. gxh4 {[%clk 0:00:26]}  Kf5 {[%clk 0:00:46]} 38. Rg1 {[%clk 0:00:24]}  Bg6 {[%clk 0:00:45]} 39. Be3 {[%clk 0:00:17]}  Ke6 {[%clk 0:00:33]} 40. Bc5 {[%clk 0:00:15]}  Kf6 {[%clk 0:00:30]} 41. Rcc1 {[%clk 0:00:14]}  Nb2 {[%clk 0:00:24]} 42. Ke3 {[%clk 0:00:11]}  Nd3 {[%clk 0:00:23]} 43. Rxg6+ {[%clk 0:00:11]}  hxg6 {[%clk 0:00:21]} 44. Kxd3 {[%clk 0:00:12]}  Kf5 {[%clk 0:00:20]} 45. Rg1 {[%clk 0:00:11]}  Rh8 {[%clk 0:00:13]} 46. Bf2 {[%clk 0:00:10]}  Rh6 {[%clk 0:00:09]} 47. Rg5+ {[%clk 0:00:10]}  Kf6 {[%clk 0:00:09]} 48. Bg3 {[%clk 0:00:11]}  Rh7 {[%clk 0:00:07]} 49. Bxe5+ {[%clk 0:00:11]}  Kf7 {[%clk 0:00:04]} 50. Bg3 {[%clk 0:00:12]} 1-0


[Site "https://www.chess.com"]

[Event "Titled Tuesday Blitz May 16 Early 2023"]
[White "Bharath Subramaniyam H"]
[Black "Karthik Rajaa"]
[WhiteFideId "46634827"]
[BlackFideId "25035215"]
[WhiteElo "2400"]
[BlackElo "2215"]
[Result "1-0"]
[Round "11"]
[TimeControl "180+2"]
[Date "2023.05.16"]
[WhiteClock "0:00:26"]
[BlackClock "0:00:01"]

1. c4 {[%clk 0:02:59]}  Nf6 {[%clk 0:03:00]} 2. Nc3 {[%clk 0:02:59]}  c5 {[%clk 0:02:59]} 3. Nf3 {[%clk 0:02:59]}  Nc6 {[%clk 0:02:59]} 4. e3 {[%clk 0:03:00]}  e6 {[%clk 0:02:58]} 5. d4 {[%clk 0:03:00]}  d5 {[%clk 0:02:59]} 6. a3 {[%clk 0:02:59]}  dxc4 {[%clk 0:02:59]} 7. Bxc4 {[%clk 0:02:59]}  a6 {[%clk 0:03:00]} 8. Bd3 {[%clk 0:02:57]}  Be7 {[%clk 0:02:53]} 9. dxc5 {[%clk 0:02:54]}  Bxc5 {[%clk 0:02:51]} 10. b4 {[%clk 0:02:55]}  Be7 {[%clk 0:02:49]} 11. Bb2 {[%clk 0:02:55]}  O-O {[%clk 0:02:49]} 12. O-O {[%clk 0:02:55]}  b5 {[%clk 0:02:48]} 13. Qc2 {[%clk 0:02:50]}  Bb7 {[%clk 0:02:46]} 14. Ne4 {[%clk 0:02:51]}  Rc8 {[%clk 0:02:31]} 15. Nc5 {[%clk 0:02:31]}  Bxc5 {[%clk 0:02:21]} 16. bxc5 {[%clk 0:02:32]}  h6 {[%clk 0:02:18]} 17. Rac1 {[%clk 0:02:30]}  Qe7 {[%clk 0:02:18]} 18. Qc3 {[%clk 0:02:29]}  Rfd8 {[%clk 0:02:04]} 19. Rfd1 {[%clk 0:02:29]}  Nb8 {[%clk 0:01:55]} 20. a4 {[%clk 0:02:05]}  Nbd7 {[%clk 0:01:53]} 21. Ba3 {[%clk 0:02:04]}  Bc6 {[%clk 0:01:20]} 22. axb5 {[%clk 0:02:02]}  axb5 {[%clk 0:01:21]} 23. Nd4 {[%clk 0:01:57]}  Nd5 {[%clk 0:01:05]} 24. Qe1 {[%clk 0:01:56]}  b4 {[%clk 0:00:57]} 25. Bxb4 {[%clk 0:01:51]}  Ba4 {[%clk 0:00:57]} 26. Bc2 {[%clk 0:01:23]}  Bxc2 {[%clk 0:00:50]} 27. Rxc2 {[%clk 0:01:24]}  Ne5 {[%clk 0:00:28]} 28. Ba5 {[%clk 0:01:18]}  Re8 {[%clk 0:00:21]} 29. c6 {[%clk 0:01:18]}  Qa7 {[%clk 0:00:12]} 30. c7 {[%clk 0:01:12]}  Nd7 {[%clk 0:00:07]} 31. Rdc1 {[%clk 0:01:06]}  N7f6 {[%clk 0:00:07]} 32. Rc6 {[%clk 0:01:05]}  e5 {[%clk 0:00:07]} 33. Nb5 {[%clk 0:01:05]}  Qa8 {[%clk 0:00:06]} 34. Nd6 {[%clk 0:01:03]}  Ne7 {[%clk 0:00:04]} 35. R6c5 {[%clk 0:01:02]}  Ng6 {[%clk 0:00:04]} 36. Nxc8 {[%clk 0:01:01]}  Rxc8 {[%clk 0:00:04]} 37. Rd1 {[%clk 0:01:01]}  Nh4 {[%clk 0:00:04]} 38. Rd8+ {[%clk 0:01:00]}  Kh7 {[%clk 0:00:05]} 39. f3 {[%clk 0:00:59]}  e4 {[%clk 0:00:04]} 40. Qxh4 {[%clk 0:00:58]}  Qa7 {[%clk 0:00:03]} 41. Bb4 {[%clk 0:00:48]}  Rxc7 {[%clk 0:00:03]} 42. Rxc7 {[%clk 0:00:36]}  Qxc7 {[%clk 0:00:04]} 43. Rd1 {[%clk 0:00:34]}  Qb6 {[%clk 0:00:04]} 44. Qe1 {[%clk 0:00:31]}  exf3 {[%clk 0:00:04]} 45. gxf3 {[%clk 0:00:32]}  g6 {[%clk 0:00:04]} 46. Kg2 {[%clk 0:00:31]}  Qc6 {[%clk 0:00:05]} 47. Rd6 {[%clk 0:00:29]}  Qc2+ {[%clk 0:00:04]} 48. Qf2 {[%clk 0:00:29]}  Qf5 {[%clk 0:00:02]} 49. e4 {[%clk 0:00:30]}  Qf4 {[%clk 0:00:02]} 50. Qg3 {[%clk 0:00:28]}  Qc1 {[%clk 0:00:02]} 51. Bd2 {[%clk 0:00:26]}  Qb2 {[%clk 0:00:02]} 52. Qf4 {[%clk 0:00:26]}  Kg7 {[%clk 0:00:01]} 53. Qxh6+ {[%clk 0:00:25]}  Kg8 {[%clk 0:00:01]} 54. Rd8+ {[%clk 0:00:25]}  Ne8 {[%clk 0:00:01]} 55. Rxe8# {[%clk 0:00:26]} 1-0


[Site "https://www.chess.com"]

[Event "Titled Tuesday Blitz May 16 Early 2023"]
[White "Hambleton, Aman"]
[Black "Tasev, Dejan"]
[WhiteFideId "2606577"]
[BlackFideId "936618"]
[WhiteElo "2511"]
[BlackElo "2244"]
[Result "1/2-1/2"]
[Round "11"]
[TimeControl "180+2"]
[Date "2023.05.16"]
[WhiteClock "0:00:02"]
[BlackClock "0:00:07"]

1. d4 {[%clk 0:03:00]}  Nf6 {[%clk 0:02:59]} 2. Bf4 {[%clk 0:03:01]}  e6 {[%clk 0:02:59]} 3. e3 {[%clk 0:03:01]}  b6 {[%clk 0:02:59]} 4. Nf3 {[%clk 0:03:01]}  Bb7 {[%clk 0:02:59]} 5. h3 {[%clk 0:03:02]}  h6 {[%clk 0:02:59]} 6. c4 {[%clk 0:02:59]}  d6 {[%clk 0:03:00]} 7. Nc3 {[%clk 0:02:59]}  Nbd7 {[%clk 0:02:59]} 8. a4 {[%clk 0:02:54]}  a5 {[%clk 0:02:59]} 9. Be2 {[%clk 0:02:54]}  Be7 {[%clk 0:02:57]} 10. Qc2 {[%clk 0:02:50]}  g5 {[%clk 0:02:52]} 11. Bg3 {[%clk 0:02:44]}  g4 {[%clk 0:02:52]} 12. hxg4 {[%clk 0:02:41]}  Nxg4 {[%clk 0:02:52]} 13. d5 {[%clk 0:01:56]}  Rg8 {[%clk 0:02:42]} 14. Nd4 {[%clk 0:00:37]}  Ndf6 {[%clk 0:01:20]} 15. Bxg4 {[%clk 0:00:13]}  Nxg4 {[%clk 0:01:19]} 16. dxe6 {[%clk 0:00:13]}  fxe6 {[%clk 0:01:12]} 17. Nxe6 {[%clk 0:00:10]}  Qd7 {[%clk 0:01:10]} 18. Qf5 {[%clk 0:00:10]}  Rg5 {[%clk 0:00:55]} 19. Qh7 {[%clk 0:00:02]}  Qxe6 {[%clk 0:00:54]} 20. O-O-O {[%clk 0:00:02]}  O-O-O {[%clk 0:00:53]} 21. Nd5 {[%clk 0:00:03]}  Bxd5 {[%clk 0:00:53]} 22. cxd5 {[%clk 0:00:03]}  Rxd5 {[%clk 0:00:53]} 23. Rxd5 {[%clk 0:00:04]}  Qxd5 {[%clk 0:00:53]} 24. Qxe7 {[%clk 0:00:04]}  Ne5 {[%clk 0:00:45]} 25. Kb1 {[%clk 0:00:03]}  Qe4+ {[%clk 0:00:43]} 26. Ka1 {[%clk 0:00:03]}  Qxa4+ {[%clk 0:00:43]} 27. Kb1 {[%clk 0:00:04]}  Qe4+ {[%clk 0:00:42]} 28. Ka1 {[%clk 0:00:04]}  Rd7 {[%clk 0:00:40]} 29. Qe8+ {[%clk 0:00:04]}  Rd8 {[%clk 0:00:38]} 30. Qe6+ {[%clk 0:00:03]}  Kb7 {[%clk 0:00:38]} 31. Rc1 {[%clk 0:00:03]}  Qa4+ {[%clk 0:00:33]} 32. Kb1 {[%clk 0:00:04]}  Qe4+ {[%clk 0:00:26]} 33. Ka1 {[%clk 0:00:04]}  Qa4+ {[%clk 0:00:26]} 34. Kb1 {[%clk 0:00:05]}  Qe4+ {[%clk 0:00:25]} 35. Rc2 {[%clk 0:00:05]}  Qd3 {[%clk 0:00:21]} 36. Bxe5 {[%clk 0:00:03]}  dxe5 {[%clk 0:00:20]} 37. Qxe5 {[%clk 0:00:04]}  Qd1+ {[%clk 0:00:19]} 38. Rc1 {[%clk 0:00:04]}  Qd3+ {[%clk 0:00:19]} 39. Ka1 {[%clk 0:00:04]}  Rd6 {[%clk 0:00:19]} 40. g4 {[%clk 0:00:03]}  Qd2 {[%clk 0:00:18]} 41. Qe4+ {[%clk 0:00:02]}  Kb8 {[%clk 0:00:17]} 42. Rc3 {[%clk 0:00:03]}  Qd1+ {[%clk 0:00:17]} 43. Ka2 {[%clk 0:00:03]}  Rd7 {[%clk 0:00:17]} 44. Qe8+ {[%clk 0:00:02]}  Kb7 {[%clk 0:00:17]} 45. Qe4+ {[%clk 0:00:03]}  Kb8 {[%clk 0:00:17]} 46. Rc4 {[%clk 0:00:02]}  Qd6 {[%clk 0:00:16]} 47. Qe8+ {[%clk 0:00:02]}  Kb7 {[%clk 0:00:16]} 48. Qe4+ {[%clk 0:00:03]}  c6 {[%clk 0:00:16]} 49. Rd4 {[%clk 0:00:02]}  Qc7 {[%clk 0:00:16]} 50. Rxd7 {[%clk 0:00:02]}  Qxd7 {[%clk 0:00:17]} 51. Qg6 {[%clk 0:00:02]}  Qd5+ {[%clk 0:00:17]} 52. b3 {[%clk 0:00:01]}  Qd2+ {[%clk 0:00:17]} 53. Ka3 {[%clk 0:00:02]}  Qb4+ {[%clk 0:00:16]} 54. Kb2 {[%clk 0:00:02]}  Qd2+ {[%clk 0:00:16]} 55. Qc2 {[%clk 0:00:03]}  Qd5 {[%clk 0:00:16]} 56. f4 {[%clk 0:00:03]}  b5 {[%clk 0:00:16]} 57. f5 {[%clk 0:00:02]}  Qe5+ {[%clk 0:00:15]} 58. Ka2 {[%clk 0:00:02]}  Kb6 {[%clk 0:00:14]} 59. Qf2 {[%clk 0:00:02]}  a4 {[%clk 0:00:14]} 60. bxa4 {[%clk 0:00:02]}  Qd5+ {[%clk 0:00:14]} 61. Kb1 {[%clk 0:00:02]}  Qb3+ {[%clk 0:00:14]} 62. Kc1 {[%clk 0:00:03]}  Qxa4 {[%clk 0:00:12]} 63. f6 {[%clk 0:00:02]}  Qa1+ {[%clk 0:00:12]} 64. Kd2 {[%clk 0:00:03]}  Qb2+ {[%clk 0:00:12]} 65. Ke1 {[%clk 0:00:03]}  Qb1+ {[%clk 0:00:10]} 66. Ke2 {[%clk 0:00:04]}  Qc2+ {[%clk 0:00:06]} 67. Kf1 {[%clk 0:00:04]}  Qd1+ {[%clk 0:00:06]} 68. Kg2 {[%clk 0:00:03]}  Qxg4+ {[%clk 0:00:07]} 69. Kh2 {[%clk 0:00:04]}  Qh5+ {[%clk 0:00:07]} 70. Kg3 {[%clk 0:00:04]}  Qg5+ {[%clk 0:00:07]} 71. Kh3 {[%clk 0:00:05]}  Qh5+ {[%clk 0:00:07]} 72. Kg2 {[%clk 0:00:05]}  Qg4+ {[%clk 0:00:07]} 73. Kh1 {[%clk 0:00:05]}  Qh5+ {[%clk 0:00:06]} 74. Kg1 {[%clk 0:00:06]}  Qg4+ {[%clk 0:00:07]} 75. Kf1 {[%clk 0:00:06]}  Qd1+ {[%clk 0:00:07]} 76. Kg2 {[%clk 0:00:02]}  Qg4+ {[%clk 0:00:07]} 1/2-1/2


[Site "https://www.chess.com"]

[Event "Titled Tuesday Blitz May 16 Early 2023"]
[White "Jovic, Stanoje"]
[Black "Wagner, Dennis"]
[WhiteFideId "905020"]
[BlackFideId "24650684"]
[WhiteElo "2236"]
[BlackElo "2478"]
[Result "0-1"]
[Round "11"]
[TimeControl "180+2"]
[Date "2023.05.16"]
[WhiteClock "0:00:00"]
[BlackClock "0:00:37"]

1. c4 {[%clk 0:03:00]}  e5 {[%clk 0:02:59]} 2. g3 {[%clk 0:03:01]}  c6 {[%clk 0:02:55]} 3. d4 {[%clk 0:03:00]}  Bb4+ {[%clk 0:02:51]} 4. Bd2 {[%clk 0:02:58]}  Bxd2+ {[%clk 0:02:51]} 5. Qxd2 {[%clk 0:02:58]}  d6 {[%clk 0:02:52]} 6. Bg2 {[%clk 0:02:54]}  Nf6 {[%clk 0:02:44]} 7. Nc3 {[%clk 0:02:52]}  O-O {[%clk 0:02:42]} 8. dxe5 {[%clk 0:02:38]}  dxe5 {[%clk 0:02:42]} 9. Qxd8 {[%clk 0:02:37]}  Rxd8 {[%clk 0:02:43]} 10. Nf3 {[%clk 0:02:35]}  Nbd7 {[%clk 0:02:35]} 11. O-O-O {[%clk 0:02:29]}  Re8 {[%clk 0:02:35]} 12. h3 {[%clk 0:02:26]}  h6 {[%clk 0:02:26]} 13. Rd6 {[%clk 0:02:11]}  Nc5 {[%clk 0:02:22]} 14. Nd2 {[%clk 0:01:58]}  Bf5 {[%clk 0:02:08]} 15. b4 {[%clk 0:01:47]}  Ne6 {[%clk 0:02:03]} 16. e3 {[%clk 0:01:39]}  a5 {[%clk 0:01:34]} 17. b5 {[%clk 0:01:32]}  Rad8 {[%clk 0:01:31]} 18. Rxd8 {[%clk 0:01:30]}  Rxd8 {[%clk 0:01:32]} 19. bxc6 {[%clk 0:01:27]}  bxc6 {[%clk 0:01:33]} 20. Bxc6 {[%clk 0:01:25]}  Nc5 {[%clk 0:01:33]} 21. Nd5 {[%clk 0:01:06]}  Nd3+ {[%clk 0:01:27]} 22. Kc2 {[%clk 0:00:52]}  Nb4+ {[%clk 0:01:17]} 23. Kc3 {[%clk 0:00:41]}  Nxc6 {[%clk 0:01:17]} 24. Nxf6+ {[%clk 0:00:32]}  gxf6 {[%clk 0:01:18]} 25. e4 {[%clk 0:00:32]}  Nb4 {[%clk 0:01:11]} 26. exf5 {[%clk 0:00:23]}  Rd3+ {[%clk 0:01:10]} 27. Kb2 {[%clk 0:00:23]}  Rxd2+ {[%clk 0:01:10]} 28. Kb3 {[%clk 0:00:23]}  Rxa2 {[%clk 0:01:06]} 29. Rc1 {[%clk 0:00:20]}  Rxf2 {[%clk 0:01:05]} 30. c5 {[%clk 0:00:20]}  Rxf5 {[%clk 0:01:05]} 31. Ka4 {[%clk 0:00:18]}  e4 {[%clk 0:00:39]} 32. c6 {[%clk 0:00:11]}  Nxc6 {[%clk 0:00:38]} 33. Rxc6 {[%clk 0:00:11]}  e3 {[%clk 0:00:37]} 34. Rc3 {[%clk 0:00:06]}  Re5 {[%clk 0:00:36]} 35. Rc1 {[%clk 0:00:05]}  e2 {[%clk 0:00:37]} 36. Re1 {[%clk 0:00:05]}  h5 {[%clk 0:00:36]} 37. h4 {[%clk 0:00:02]}  Kg7 {[%clk 0:00:36]} 38. Kb3 {[%clk 0:00:02]}  Kg6 {[%clk 0:00:36]} 39. Kc3 {[%clk 0:00:00]}  Kf5 {[%clk 0:00:37]} 0-1


[Site "https://www.chess.com"]